Cogmind - Beta 16.1 @@@ ROGUE MODE // 2026.04.08 @ 18:48:26 Player: zacyquack Result: Destroyed by S-10 Pest with Light Assault Rifle Performance ------------- Evolutions (0) 0 Regions Visited (2) 400 Robots Destroyed (17) 85 Value Destroyed (485) 485 Prototype IDs (2) 40 Alien Tech Used (0) 0 Bonus (0) 0 TOTAL SCORE: 1010 Bonus ------- None Cogmind --------- Core Integrity 0/250 Matter 300/300 Energy 125/125 System Corruption 0% Temperature Cool (0) Movement Core (450) Ox8 Location -10/Mines Parts ------- > --- POWER (1) -------- Light Ion Engine > --- PROPULSION (2) --- (None) > --- UTILITY (2) ------ Large Storage Unit ECM Suite > --- WEAPON (2) ------- Hammer > --- INVENTORY (15) --- Light Ion Engine Improved Heat Sink Visual Processing Unit Signal Interpreter Light Assault Rifle Light Cannon Peak State ------------ > --- POWER ------------ Light Nuclear Core > --- PROPULSION ------- Light Treads > --- UTILITY ---------- Large Storage Unit ECM Suite > --- WEAPON ----------- Light Assault Rifle Light Assault Rifle > --- INVENTORY -------- Ion Engine Light Ion Engine Improved Heat Sink Visual Processing Unit Signal Interpreter Light Cannon Grenade Launcher [Rating: 9] Favorites ----------- Power Ion Engine Engine Ion Engine Power Core Light Nuclear Core Propulsion Light Treads Treads Light Treads Utility Large Storage Unit Device ECM Suite Storage Large Storage Unit Weapon Light Assault Rifle Ballistic Gun Light Assault Rifle Ballistic Cannon Light Cannon Launcher Grenade Launcher Special Weapon Mining Laser Impact Weapon Hammer Build | -11 -10 -10 ------- Run | Yrd Mat Min Slots Evolved . | . . . Power . | . . . Propulsion . | . . . Utility . | . . . Weapon . | . . . Parts Attached 16 | 6 5 5 Power 3 | 1 1 1 Engine 2 | 1 . 1 Core 1 | . 1 . Reactor . | . . . Propulsion 2 | 2 . . Treads 2 | 2 . . Leg . | . . . Wheel . | . . . Hover . | . . . Flight . | . . . Utility 4 | 1 3 . Device 2 | . 2 . Storage 2 | 1 1 . Processor . | . . . Hackware . | . . . Protection . | . . . Artifact . | . . . Weapon 7 | 2 1 4 Energy Gun . | . . . Energy Cannon . | . . . Ballistic Gun 3 | 2 . 1 Ballistic Cannon 1 | . 1 . Launcher 1 | . . 1 Special Weapon 1 | . . 1 Impact Weapon 1 | . . 1 Slashing Weapon . | . . . Piercing Weapon . | . . . Special Melee Weapon . | . . . Unidentified Prototypes . | . . . Parts Lost 8 | . 3 5 Power 2 | . 1 1 Propulsion 2 | . 1 1 Utility . | . . . Weapon 4 | . 1 3 Highest Loss Streak 3 | . 2 3 To Critical Strikes . | . . . Average Backups 4 | 1 3 5 Power . | . 1 . Propulsion . | . . . Utility 1 | . 1 3 Weapon 1 | . 1 2 Tool/Special . | . . . Unused Backups 3 | . . 3 Power 1 | . . 1 Propulsion . | . . . Utility 2 | . . 2 Weapon . | . . . Tool/Special . | . . . Average Slot Usage (%) 75 | . 83 67 Engine 12 | . 13 10 Treads 12 | . 23 . Device 8 | . 3 14 Storage 14 | . 14 14 Ballistic Gun 19 | . 26 13 Ballistic Cannon 4 | . 1 8 Special Weapon 2 | . . 4 Peak Build Rating 9 | 6 9 6 Average Rating 5 | 4 6 4 On Entrance 4 | . 6 6 Avg Prop Armor Cover (%) . | . . . Naked Turns . | . . . Heaviest Build 31 | 12 31 30 Greatest Support 40 | 40 40 3 Greatest Overweight (x) 9 | 1 1 9 Average Overweight (x) 2 | . . 8 Largest Inventory Capacity 15 | 8 15 15 Average Capacity 13 | 7 12 15 Most Carried 7 | 6 7 7 Average Carried 4 | 2 3 5 Final Capacity 15 | 8 15 15 Final Carried 6 | 1 6 6 Class Distribution -------------------- 100% | Mutant Dominant Class ---------------- Mutant | -10/Materials Mutant | -10/Mines Resources | -11 -10 -10 ----------- Run | Yrd Mat Min Matter Collected 551 | 244 151 156 Remotely . | . . . Salvage Created 515 | . 456 59 Parts 29 | . 25 4 Haulers Intercepted . | . . . Recyclers Shooed 1 | . 1 . Parts Field Recycled . | . . . Retrieved Matter . | . . . Parts Self-Destructed . | . . . Prevented . | . . . Parts Restored . | . . . Kills | -11 -10 -10 ------- Run | Yrd Mat Min Combat Hostiles Destroyed 15 | . 10 5 Guns 13 | . 10 3 Cannons 2 | . . 2 Classes Destroyed 3 | . 2 1 Watcher 2 | . 2 . Swarmer 4 | . . 4 Grunt 11 | . 10 1 Best Kill Streak 3 | . 3 2 Combat Bots Only 3 | . 3 2 Max Kills in Single Turn 1 | . 1 1 Gunslinging . | . . . Exploded . | . . . Melee . | . . . Uniques/NPCs Destroyed . | . . . Combat | -11 -10 -10 -------- Run | Yrd Mat Min Hostile Shots Fired 132 | . 61 71 Missed 32 | . 16 16 Hits 100 | . 45 55 Projectile 100 | . 45 55 Critical Strikes 2 | . 1 1 Damage Taken 1125 | . 638 487 Core 250 | . 122 128 Absorbed by Shields . | . . . Core Remaining (%) 100 | 100 . . Volleys Fired 75 | . 48 27 Largest 2 | . 2 2 Hottest 120 | . 40 120 Shots Fired 127 | . 95 32 Gun 112 | . 95 17 Cannon 5 | . . 5 Launcher 4 | . . 4 Special 6 | . . 6 Kinetic 117 | . 95 22 Thermal 6 | . . 6 Explosive 4 | . . 4 Electromagnetic . | . . . Robot Hit Streak 16 | . 16 6 Robot Miss Streak 4 | . 4 2 Penetration Max . | . . . Secondary Targets 2 | . 2 . Max Gunslinging Chain 1 | . 1 . Shots Hit Robots 91 | . 73 18 Core Hits 37 | . 30 7 Critical Kills . | . . . Critical Parts Destroyed . | . . . Critical Strikes 1 | . . 1 Blast 1 | . . 1 Melee Attacks 3 | . . 3 Impact 3 | . . 3 Slashing . | . . . Piercing . | . . . Sneak Attacks . | . . . Combat Hostiles . | . . . Follow-up Attacks . | . . . Damage Inflicted 1020 | . 617 403 Guns 723 | . 617 106 Cannons 49 | . . 49 Explosions 199 | . . 199 Melee . | . . . Ramming 1 | . . 1 Kinetic 772 | . 617 155 Thermal 48 | . . 48 Explosive 199 | . . 199 Electromagnetic . | . . . Impact . | . . . Slashing . | . . . Piercing . | . . . Highest Corruption . | . . . Average Corruption . | . . . Corruption Purged . | . . . Corruption Blocked . | . . . Overload Shots . | . . . Overflow Damage 7 | . . 7 Projectiles . | . . . Explosions 7 | . . 7 Melee . | . . . Knockbacks 1 | . . 1 Impact . | . . . Kinetic 1 | . . 1 Secondary . | . . . Self-Inflicted Damage 13 | . . 13 Shots 2 | . . 2 Rammed 1 | . . 1 Targets Rammed 1 | . . 1 Kicked . | . . . Crushed . | . . . Highest Temperature 60 | . 34 60 Average Temperature 17 | . 13 24 Received Heat Transfer 405 | . 333 72 Siege Activations . | . . . Martial Activations . | . . . Shielding Activations . | . . . Robots Disrupted . | . . . Combat Hostiles . | . . . Robots Corrupted . | . . . Combat Hostiles . | . . . Parts Fried . | . . . Impact Corruptions . | . . . Robots Melted . | . . . Combat Hostiles . | . . . Parts Melted . | . . . Heat Transferred 100 | . . 100 Parts Sabotaged . | . . . Parts Stolen . | . . . Parts Stripped . | . . . Power Chain Reactions . | . . . Alert | -11 -10 -10 ------- Run | Yrd Mat Min Maximum Alert Level . | . . . Low Security (%) 100 | 100 100 100 Level 1 . | . . . Level 2 . | . . . Level 3 . | . . . Level 4 . | . . . Level 5 . | . . . High Security . | . . . Max Security . | . . . Peak Influence 77 | . 77 43 Initial . | . . . Average 10 | . 16 4 Influence Increases 441 | . 300 141 Destroy 0b10 Robot/C 300 | . 200 100 Destroy 0b10 Robot/NC 10 | . 10 . Destroy Leader 54 | . 34 20 Successful Hack 26 | . 26 . Destroy Structure 21 | . . 21 Lose Combat Pursuer 30 | . 30 . Influence Decreases 439 | . 300 139 Time Decay 333 | . 232 101 Lost Part 48 | . 10 38 Purge Threat 58 | . 58 . Squads Dispatched 1 | . 1 . Investigation 1 | . 1 . Extermination . | . . . Reinforcement . | . . . Assault . | . . . Garrison . | . . . Intercept . | . . . Searches Triggered . | . . . Construction Impeded . | . . . Haulers Reinforced . | . . . Active Scanning Responses . | . . . Cargo Convoy Interrupts . | . . . Stealth | -11 -10 -10 --------- Run | Yrd Mat Min Distress Signals 1 | . 1 . Communications Jammed . | . . . Distress Signals . | . . . Times Spotted 22 | . 15 7 Peak Tracking Total 4 | . 4 3 Tactical Retreats 4 | . 1 3 ECM-based Alert Blocks 4 | . . 4 Traps | -11 -10 -10 ------- Run | Yrd Mat Min Traps Triggered 4 | . 4 . Indirectly . | . . . Trap Hack Attempts . | . . . Triggered . | . . . Disarmed . | . . . Reprogrammed . | . . . Reused . | . . . Traps Extracted . | . . . Installed . | . . . Triggered . | . . . Machines | -11 -10 -10 ---------- Run | Yrd Mat Min Machines Disabled . | . . . Max in Single Turn . | . . . Machines Repaired . | . . . Machines Dismantled . | . . . Machines Sabotaged . | . . . Overloaded Fab Kills . | . . . Hacking | -11 -10 -10 --------- Run | Yrd Mat Min Machines Accessed 7 | . 7 . Terminals 5 | . 5 . Fabricators . | . . . Repair Stations . | . . . Recycling Units 2 | . 2 . Scanalyzers . | . . . Garrison Access . | . . . Total Hacks 21 | . 21 . Successful 13 | . 13 . Failed 8 | . 8 . Catastrophic 2 | . 2 . Database Lockouts . | . . . Manual 9 | . 9 . Terminals 17 | . 17 . Fabricators . | . . . Repair Stations . | . . . Recycling Units 4 | . 4 . Scanalyzers . | . . . Garrison Access . | . . . Terminal Hacks 9 | . 9 . Robot Analysis 1 | . 1 . Prototype ID Bank 1 | . 1 . Branch Access Points 1 | . 1 . Alert Level 1 | . 1 . Unreport Threat 1 | . 1 . Patrol Status 1 | . 1 . Recall Investigation 1 | . 1 . Zone Layout 2 | . 2 . Fabricator Hacks . | . . . Repair Station Hacks . | . . . Recycling Unit Hacks 4 | . 4 . Report Inventory 3 | . 3 . Retrieve Components 1 | . 1 . Scanalyzer . | . . . Garrison Access Hacks . | . . . Unauthorized Hacks . | . . . Terminals . | . . . Fabricators . | . . . Repair Stations . | . . . Recycling Units . | . . . Scanalyzers . | . . . Garrison Access . | . . . Data Cores Recovered . | . . . Used . | . . . Hacking Detections 5 | . 5 . Full Trace Events 1 | . 1 . Feedback Events . | . . . Feedback Blocked . | . . . Robot Schematics Acquired . | . . . Robots Built . | . . . Authchips . | . . . Time . | . . . Total Robot Build Rating . | . . . Part Schematics Acquired . | . . . Parts Built . | . . . Authchips . | . . . Time . | . . . Total Part Build Rating . | . . . Part Studies Acquired . | . . . Parts Repaired . | . . . Time . | . . . Parts Recycled . | . . . Recycled Matter . | . . . Retrieved Matter . | . . . Retrieved Components 9 | . 9 . Parts Scanalyzed . | . . . Part Schematics Acquired . | . . . Parts Damaged . | . . . Bothacking | -11 -10 -10 ------------ Run | Yrd Mat Min Used RIF Installer . | . . . Robots Hacked . | . . . Non-combat . | . . . Combat . | . . . Robot Hacks Applied . | . . . Relay Couplers Released . | . . . Fabnet Peak Effective % . | . . . Robots Rewired . | . . . Allies Hacked . | . . . Hacks Repelled . | . . . Allies | -11 -10 -10 -------- Run | Yrd Mat Min Total Allies . | . . . Largest Group . | . . . Highest-Rated Group . | . . . Highest-Rated Ally . | . . . Total Orders . | . . . Ally Attacks . | . . . Total Damage . | . . . Kills . | . . . Allies Corrupted . | . . . Allies Melted . | . . . Intel | -11 -10 -10 ------- Run | Yrd Mat Min Active Infowar (turns) 1084 | . 242 842 ECM 1084 | . 242 842 Robot Analysis Total 1 | . 1 . Derelict Logs Recovered . | . . . Drone Launches . | . . . Drone Recoveries . | . . . Exploration | -11 -10 -10 ------------- Run | Yrd Mat Min Turns Passed 1801 | 65 894 842 Spaces Moved 618 | 44 420 154 Core 172 | 18 . 154 Treads 446 | 26 420 . Legs . | . . . Wheels . | . . . Hover . | . . . Flight . | . . . Fastest Speed 50 | 50 160 450 Average Speed 251 | 120 178 486 Slowest Speed 500 | 160 240 500 Overloaded Moves . | . . . Propulsion Burnouts . | . . . Robots Hopped . | . . . Potential Cave-ins . | . . . Cave-ins Triggered . | . . . Exploration Rate (%) 28 | 3 57 24 Regions Visited 2 Branch Regions 1 Pre-discovered Areas . | . . . Known Exits Taken 1 | . 1 . Unknown Exits Taken 1 | 1 . . Scrap Searched 2 | . . 2 Spaces Dug 2 | . . 2 Terrain Destroyed 26 | . . 26 Melee . | . . . Projectile 3 | . . 3 AOE 23 | . . 23 Terrain Rammed . | . . . Walls Destroyed . | . . . Machines Disabled . | . . . Actions | -11 -10 -10 --------- Run | Yrd Mat Min Total 739 | 56 488 195 Wait 5 | . 5 . Move 616 | 43 419 154 Hop . | . . . Pick Up 19 | 7 9 3 Fast Attach . | . . . Attach 12 | 6 3 3 Detach . | . . . Swap 7 | . 3 4 Drop 1 | . 1 . Fire 75 | . 48 27 Melee 3 | . . 3 Ram 1 | . . 1 Kick . | . . . Crush . | . . . Escape Stasis . | . . . Rewire . | . . . Trap . | . . . Miscellaneous . | . . . Route ------- -11/Scrapyard -10/Materials (discovered 3 exits: [*Mat] / *Min x2) -10/Mines History --------- Turn | Location | Event 13 | -11/Scrapyard | Discovered new exit (range 15) 66 | -11/Scrapyard | Entered Materials 207 | -10/Materials | Identified exit to Mines 314 | -10/Materials | Build established: Mutant 395 | -10/Materials | Discovered new exit (range 7) 960 | -10/Materials | Entered Mines 963 | -10/Mines | Core integrity fell below 50% 1009 | -10/Mines | Lost 3 parts (1p1n1w) 1768 | -10/Mines | Core integrity fell below 20% 1802 | -10/Mines | Destroyed by S-10 Pest with Light Assault Rifle Last Messages --------------- 01511_ U-05 Engineer builds a Wall. 01614_ S-10 Pest destroyed. 01625_ K-01 Serf cleans the Seismic Survey Station. 01627_ S-10 Pest destroyed. 01628_ K-01 Serf cleans the Seismic Survey Station. 01631_ K-01 Serf collects debris. 01639_ Acquired 18 matter. 01639_ K-01 Serf collects debris. 01644_ K-01 Serf cleans the Plasma Injector. 01659_ Acquired Lgt. Ion Engine. 01685_ Acquired 10 matter. 01725_ Slammed into T-07 Excavator. 01746_ S-10 Pest destroyed. 01758_ Assault Rifle destroyed. 01770_ S-10 Pest destroyed. 01778_ Acquired 33 matter. 01784_ Mining Laser destroyed. Map ----- +----------------------------------------------------+ | ?????????????????# #### #?# """ #?? | | ??????????????#### ### #?# """ #?? | | ?????????????## ### ###### ### """ #?? | | ?????????????### ## #????## ## #?? | | ?????????????# #?????# ##?? | | ???????????#### [ #?????# ###??? | | ???????????# ####?????## ##????? | | ???????????# # ###?????????# ##????? | | ???????????# ?# # #??????????## ##???? | | ???????????#??# ###???????????## #???? | | ??????????????## #?????????????## #??? | | ???????????????## #?????????????# ## ##??? | | ????????????????# #????????????## ######???? | | ????????????????# ####????????????# #????????? | | ????????????????# #???????????????# ##????????? | | ????????????????# ???????????????# ##########? | | ????????????????###???????????????# ## #? | | ??????????????????????????????????# ## """ #? | | ????????????????????????????# ##### "# """ #? | | ????????????????????????????# [""" #? | | ????????????????????????????########## #? | | ??????????????????????######???####### """ #? | | ??????????????????##### #???# % """ #? | | ??????????????????? #???# ##### """ #? | | ??????????????????????# ##### #???# #? | | ??????????????????????# s@= [ ## #???#########? | | ??????????????????????# # ## #????????????? | | ??????????????????????# # ##%#????????????? | | ??????????????????????###### #????????????? | | ???????????????????????????# ####????????????? | | ???????????????????????????# #???????????????? | | ???????????????????????????# #???????????????? | | ???????????????????????????# #???????????????? | | ???????????????????????????# #???????????????? | | ???????????????????????????# #???????????????? | | ???????????????????????????# #???????????????? | | ???????????????????????????# ???????????????? | | ???????????????????????????# ???????????????? | | ???????????????????????????####???????????????? | | ??????????????????????????????????????????????? | | ??????????????????????????????????????????????? | | ??????????????????????????????????????????????? | | ??????????????????????????????????????????????? | | ??????????????????????????????????????????????? | | ??????????????????????????????????????????????? | | ??????????????????????????????????????????????? | | ??????????????????????????????????????????????? | | ??????????????????????????????????????????????? | | ??????????????????????????????????????????????? | | ??????????????????????????????????????????????? | +----------------------------------------------------+ Best States ------------- Heat Dissipation 25 Energy Generation 14 Energy Capacity 250 Matter Stores 300 Matter Capacity 300 Sight Range 16 Terrain Scan Density 10 ECM Strength 1 Evasion (%) 50 Recoil Reduction 2 Item Schematics ----------------- None Robot Schematics ------------------ None Fabricated ------------ Nothing Repaired ---------- Nothing Studied --------- None Alien Tech Used ----------------- None Achievements -------------- None Challenges ------------ None Game ------ Seed DecoyFactoryManipulator Manual? 0 Play Time 00:13:26 Cumulative 9.3 hours Start 2026.04.08 @ 18:37:30 End 2026.04.08 @ 18:48:26 Sessions 1 Manual Loads 0 Difficulty Rogue Special Mode None Game No. 14 Rogue 14 Adventurer 0 Explorer 0 Win Type - Total 0 Types 0/0/0/0/0/0/0/0/0/0 Lore% 9 Gallery% 11 Achievement% 12 Wizard Run 0 Options --------- Layout 1 ASCII 0 Keyboard 0 Movement Mouse Keybinds 0 Fullscreen 1 Font 32/SmallcapsGlow Map View 50x35 Zoom Use 0% Tactical HUD 1 Map Filters NONE Filters NONE Steam 1 RUN: e98cbc06-2a2a-4f25-b452-76107dcb8f40